[Event "CZE-ch Open 2019"]
[Site "Ostrava"]
[Date "2019.05.05"]
[Round "9.3"]
[White "Hausner, Ivan"]
[Black "Plat, Vojtech"]
[Result "1/2-1/2"]
[ECO "D85"]
[WhiteElo "2349"]
[BlackElo "2535"]
[Annotator "RC"]
[PlyCount "68"]
[EventDate "2019.04.27"]
[EventType "swiss"]
[EventCountry "CZE"]
[SourceTitle "playchess.com"]
[Source "ChessBase"]
[SourceQuality "1"]
[TimeControl "40/5400+30:1800+30"]

1. d4 {[%emt 0:00:19]} Nf6 {[%emt 0:00:00]} 2. c4 {[%emt 0:00:06]} g6 {[%emt 0:00:00]} 3. Nc3 {[%emt 0:00:07]} d5 {[%emt 0:00:00]} 4. cxd5 {[%emt 0:00:13]} Nxd5 {[%emt 0:00:00]} 5. g3 {[%emt 0:00:03]} Bg7 {[%emt 0:00:01]} 6. Bg2 {[%emt 0:00:04]} Nb6 {[%emt 0:00:04]} 7. Nf3 {[%emt 0:00:10]} Nc6 {[%emt 0:00:07]} 8. Bf4 {[%emt 0:00:55]} O-O {[%emt 0:02:33]} 9. O-O {[%emt 0:00:06]} Be6 {[%emt 0:02:21]} 10. Rc1 {[%emt 0:07:11]} Bc4 {[%emt 0:05:22]} 11. b3 {[%emt 0:03:54]} Ba6 {[%emt 0:00:09]} 12. Ne4 {[%emt 0:00:23]} e5 {[%emt 0:06:47]} 13. Bxe5 {[%emt 0:03:48]} Bxe5 {[%emt 0:00:54]} 14. dxe5 {[%emt 0:00:29]} Qxd1 {[%emt 0:00:03]} 15. Rfxd1 {[%emt 0:00:07]} Bxe2 {[%emt 0:00:01]} 16. Re1 {[%emt 0:04:32]} Bxf3 {[%emt 0:00:32]} 17. Bxf3 {[%emt 0:01:09]} Nxe5 {[%emt 0:00:07]} 18. Nf6+ {[%emt 0:00:06]} Kg7 {[%emt 0:00:01]} 19. Nh5+ {[%emt 0:00:11]} gxh5 {[%emt 0:00:03]} 20. Rxe5 {[%emt 0:00:07]} c6 {[%emt 0:00:02]} 21. Bxh5 {[%emt 0:05:21]} Rfe8 {[%emt 0:00:59]} 22. Rg5+ {[%emt 0:00:43]} Kf6 {[%emt 0:00:28]} 23. Rg4 {[%emt 0:00:35]} Nd5 {[%emt 0:01:19]} 24. Rh4 {[%emt 0:00:40]} Kg7 {[%emt 0:00:30]} 25. Rg4+ {[%emt 0:01:40]} Kf8 {[%emt 0:01:04]} 26. Rh4 {[%emt 0:00:08]} Nf6 {[%emt 0:02:42]} 27. Bf3 {[%emt 0:00:30]} Rad8 {[%emt 0:00:48]} 28. Rc2 {[%emt 0:00:18]} Re5 {[%emt 0:00:18]} 29. Rb4 {[%emt 0:01:05]} Rd7 {[%emt 0:00:18]} 30. Kg2 {[%emt 0:00:06]} Ke7 {[%emt 0:00:59]} 31. Kf1 {[%emt 0:01:04]} Rc7 {[%emt 0:01:57]} 32. Re2 {[%emt 0:01:26]} Rxe2 {[%emt 0:00:05]} 33. Kxe2 {[%emt 0:00:06]} b6 {[%emt 0:00:14]} 34. Rh4 {[%emt 0:03:55]} Kf8 {[%emt 0:01:30]} 1/2-1/2

[Event "CZE-ch Open 2019"]
[Site "Ostrava"]
[Date "2019.05.05"]
[Round "9.4"]
[White "Mrazek, Lumir"]
[Black "Simacek, Pavel"]
[Result "0-1"]
[ECO "B23"]
[WhiteElo "2364"]
[BlackElo "2471"]
[Annotator "RC"]
[PlyCount "80"]
[EventDate "2019.04.27"]
[EventType "swiss"]
[EventCountry "CZE"]
[SourceTitle "playchess.com"]
[Source "ChessBase"]
[SourceQuality "1"]
[TimeControl "40/5400+30:1800+30"]

1. e4 {[%emt 0:00:00]} c5 {[%emt 0:00:00]} 2. Nc3 {[%emt 0:02:15]} Nc6 {[%emt 0:00:29]} 3. f4 {[%emt 0:01:37]} e6 {[%emt 0:00:48]} 4. Nf3 {[%emt 0:00:16]} d5 {[%emt 0:00:29]} 5. Bb5 {[%emt 0:00:25]} Nge7 {[%emt 0:00:53]} 6. exd5 {[%emt 0:03:38]} exd5 {[%emt 0:00:32]} 7. Qe2 {[%emt 0:01:32]} a6 {[%emt 0:01:07]} 8. Bxc6+ {[%emt 0:03:22]} bxc6 {[%emt 0:00:03]} 9. Ne5 {[%emt 0:04:54]} Qd6 {[%emt 0:02:58]} 10. b3 {[%emt 0:04:54]} f6 {[%emt 0:04:13]} 11. Nd3 {[%emt 0:05:33]} c4 {[%emt 0:01:40]} 12. bxc4 {[%emt 0:00:20]} dxc4 {[%emt 0:00:35]} 13. Nb2 {[%emt 0:06:02]} Qxf4 {[%emt 0:06:02]} 14. Nxc4 {[%emt 0:14:30]} Bg4 {[%emt 0:02:22]} 15. Rf1 {[%emt 0:01:49]} Qd4 {[%emt 0:02:15]} 16. Qe4 {[%emt 0:00:53]} Qxe4+ {[%emt 0:02:34]} 17. Nxe4 {[%emt 0:00:06]} Nd5 {[%emt 0:00:17]} 18. Rb1 {[%emt 0:03:54]} O-O-O {[%emt 0:09:29]} 19. Nb6+ {[%emt 0:08:01]} Kc7 {[%emt 0:01:18]} 20. Nxd5+ {[%emt 0:04:12]} cxd5 {[%emt 0:00:19]} 21. Rf4 {[%emt 0:02:37]} h5 {[%emt 0:26:05]} 22. Ng3 {[%emt 0:05:39]} Bc5 {[%emt 0:10:55]} 23. d4 {[%emt 0:04:37]} Rde8+ {[%emt 0:04:55]} 24. Kf1 {[%emt 0:03:51]} Bd6 {[%emt 0:03:55]} 25. Rf2 {[%emt 0:00:02]} h4 {[%emt 0:00:39]} 26. Nf5 {[%emt 0:00:01]} Bxh2 {[%emt 0:01:15]} 27. Nxg7 {[%emt 0:01:01]} Re7 {[%emt 0:10:50]} 28. Nf5 {[%emt 0:01:23]} Re4 {[%emt 0:00:06]} 29. Ne3 {[%emt 0:00:40]} Rhe8 {[%emt 0:04:57]} 30. Rxf6 {[%emt 0:07:41]} Rxe3 {[%emt 0:00:29]} 31. Bxe3 {[%emt 0:00:05]} Rxe3 {[%emt 0:00:44]} 32. Rxa6 {[%emt 0:02:21]} Bg3 {[%emt 0:00:12]} 33. Ra7+ {[%emt 0:00:55]} Kc8 {[%emt 0:00:16]} 34. Rg7 {[%emt 0:03:24]} Be2+ {[%emt 0:00:53]} 35. Kg1 {[%emt 0:00:02]} Bc4 {[%emt 0:00:10]} 36. a4 {[%emt 0:00:54]} Ra3 {[%emt 0:00:11]} 37. Ra7 {[%emt 0:00:13]} Ra2 {[%emt 0:01:31]} 38. c3 {[%emt 0:01:34]} Bd3 {[%emt 0:00:31]} 39. Rd1 {[%emt 0:00:47]} Be4 {[%emt 0:00:18]} 40. Ra8+ {[%emt 0:02:58]} Kb7 {[%emt 0:00:16]} 0-1

[Event "CZE-ch Open 2019"]
[Site "Ostrava"]
[Date "2019.05.05"]
[Round "9.7"]
[White "Roubalik, Jakub"]
[Black "Stocek, Jiri"]
[Result "0-1"]
[ECO "E12"]
[WhiteElo "2417"]
[BlackElo "2563"]
[Annotator "ChessBase"]
[PlyCount "158"]
[EventDate "2019.04.27"]
[EventType "swiss"]
[EventCountry "CZE"]
[SourceTitle "playchess.com"]
[Source "ChessBase"]
[SourceQuality "1"]
[TimeControl "40/5400+30:1800+30"]

1. d4 {[%emt 0:00:00]} Nf6 {[%emt 0:07:19]} 2. c4 {[%emt 0:00:00]} e6 {[%emt 0:00:07]} 3. Nf3 {[%emt 0:00:00]} b6 {[%emt 0:00:27]} 4. a3 {[%emt 0:00:00]} Bb7 {[%emt 0:00:17]} 5. Nc3 {[%emt 0:00:02]} d5 {[%emt 0:01:31]} 6. cxd5 {[%emt 0:00:04]} Nxd5 {[%emt 0:00:08]} 7. e3 {[%emt 0:00:06]} Nd7 {[%emt 0:02:15]} 8. Bd3 {[%emt 0:04:07]} c5 {[%emt 0:03:04]} 9. Nxd5 {[%emt 0:23:38]} Bxd5 {[%emt 0:03:22]} 10. O-O {[%emt 0:12:27]} cxd4 {[%emt 0:03:20]} 11. Nxd4 {[%emt 0:10:27]} Bd6 {[%emt 0:04:59]} 12. e4 {[%emt 0:07:05]} Bb7 {[%emt 0:00:45]} 13. Bb5 {[%emt 0:02:18]} a6 {[%emt 0:08:35]} 14. e5 {[%emt 0:25:32]} Bc5 {[%emt 0:04:28]} 15. Bxd7+ {[%emt 0:00:18]} Qxd7 {[%emt 0:00:10]} 16. Nb3 {[%emt 0:00:26]} Be7 {[%emt 0:05:01]} 17. Qxd7+ {[%emt 0:01:01]} Kxd7 {[%emt 0:00:05]} 18. Be3 {[%emt 0:00:07]} Bd5 {[%emt 0:01:40]} 19. Rfd1 {[%emt 0:00:42]} Rhc8 {[%emt 0:04:37]} 20. Nd4 {[%emt 0:00:38]} g6 {[%emt 0:01:56]} 21. Rd2 {[%emt 0:01:21]} Kc7 {[%emt 0:01:55]} 22. Ne2 {[%emt 0:02:08]} Kb7 {[%emt 0:01:28]} 23. Nc3 {[%emt 0:00:35]} Bc6 {[%emt 0:00:11]} 24. f3 {[%emt 0:00:28]} Rc7 {[%emt 0:05:14]} 25. Rad1 {[%emt 0:00:50]} Rac8 {[%emt 0:00:33]} 26. Kf2 {[%emt 0:00:59]} a5 {[%emt 0:02:47]} 27. Rd4 {[%emt 0:00:54]} Bf8 {[%emt 0:05:16]} 28. R1d2 {[%emt 0:01:39]} Ka6 {[%emt 0:04:25]} 29. Ne4 {[%emt 0:05:34]} Bg7 {[%emt 0:03:25]} 30. Nd6 {[%emt 0:00:48]} Bxe5 {[%emt 0:09:06]} 31. Nxc8 {[%emt 0:00:05]} Bxd4 {[%emt 0:00:06]} 32. Bxd4 {[%emt 0:00:46]} Rxc8 {[%emt 0:00:05]} 33. Rc2 {[%emt 0:00:46]} Kb7 {[%emt 0:01:21]} 34. Bf6 {[%emt 0:00:16]} Re8 {[%emt 0:02:49]} 35. f4 {[%emt 0:00:39]} a4 {[%emt 0:03:39]} 36. Ke3 {[%emt 0:00:18]} Ra8 {[%emt 0:00:11]} 37. g3 {[%emt 0:00:43]} Ra5 {[%emt 0:00:21]} 38. Be5 {[%emt 0:00:32]} g5 {[%emt 0:01:48]} 39. Rd2 {[%emt 0:00:23]} gxf4+ {[%emt 0:00:25]} 40. gxf4 {[%emt 0:00:21]} Ra8 {[%emt 0:01:13]} 41. Bc3 {[%emt 0:07:54]} Rg8 {[%emt 0:03:21]} 42. Kd4 {[%emt 0:10:24]} Bd5 {[%emt 0:10:04]} 43. Ke5 {[%emt 0:04:17]} Kc6 {[%emt 0:00:21]} 44. Rf2 {[%emt 0:01:20]} Rg6 {[%emt 0:00:33]} 45. Kd4 {[%emt 0:01:22]} f6 {[%emt 0:05:15]} 46. Ke3 {[%emt 0:00:18]} Rh6 {[%emt 0:00:13]} 47. Kd2 {[%emt 0:01:01]} Kd6 {[%emt 0:01:33]} 48. Bb4+ {[%emt 0:00:15]} Kd7 {[%emt 0:00:09]} 49. Bc3 {[%emt 0:00:31]} Ke7 {[%emt 0:00:18]} 50. Bd4 {[%emt 0:00:34]} b5 {[%emt 0:00:09]} 51. Bc5+ {[%emt 0:01:50]} Kf7 {[%emt 0:00:10]} 52. Be3 {[%emt 0:00:10]} Rh3 {[%emt 0:01:08]} 53. Kd3 {[%emt 0:00:15]} Bf3 {[%emt 0:04:00]} 54. Kd4 {[%emt 0:02:34]} Kg6 {[%emt 0:00:40]} 55. Kc5 {[%emt 0:01:23]} Be4 {[%emt 0:03:23]} 56. Bd4 {[%emt 0:00:47]} Rh5+ {[%emt 0:00:47]} 57. Kb4 {[%emt 0:00:20]} Bd3 {[%emt 0:01:04]} 58. Kc3 {[%emt 0:00:45]} Bc4 {[%emt 0:00:26]} 59. Bb6 {[%emt 0:02:44]} Kf5 {[%emt 0:00:40]} 60. Bd4 {[%emt 0:01:10]} Rh3+ {[%emt 0:01:48]} 61. Kb4 {[%emt 0:00:49]} h5 {[%emt 0:01:02]} 62. Kc5 {[%emt 0:00:19]} h4 {[%emt 0:01:15]} 63. Bc3 {[%emt 0:00:12]} Rd3 {[%emt 0:00:53]} 64. Bd4 {[%emt 0:00:11]} h3 {[%emt 0:00:48]} 65. Bc3 {[%emt 0:00:06]} Re3 {[%emt 0:03:39]} 66. Kd6 {[%emt 0:00:43]} Kg6 {[%emt 0:04:36]} 67. Ke7 {[%emt 0:00:31]} f5 {[%emt 0:00:29]} 68. Rd2 {[%emt 0:01:26]} Kh5 {[%emt 0:00:15]} 69. Rf2 {[%emt 0:00:35]} Kg4 {[%emt 0:00:08]} 70. Kf6 {[%emt 0:00:27]} Rf3 {[%emt 0:02:42]} 71. Rxf3 {[%emt 0:00:36]} Kxf3 {[%emt 0:00:04]} 72. Be1 {[%emt 0:00:06]} Kxf4 {[%emt 0:00:05]} 73. Bg3+ {[%emt 0:00:14]} Ke4 {[%emt 0:00:07]} 74. Bc7 {[%emt 0:00:37]} f4 {[%emt 0:00:09]} 75. Kg5 {[%emt 0:00:07]} e5 {[%emt 0:00:07]} 76. Bb8 {[%emt 0:00:44]} f3 {[%emt 0:01:56]} 77. Ba7 {[%emt 0:00:04]} Kd3 {[%emt 0:00:04]} 78. Kg4 {[%emt 0:00:07]} Ke2 {[%emt 0:00:10]} 79. Kg3 {[%emt 0:00:19]} e4 {[%emt 0:00:06]} 0-1

[Event "CZE-ch Open 2019"]
[Site "Ostrava"]
[Date "2019.05.05"]
[Round "9.12"]
[White "Zwardon, Vojtech"]
[Black "Kulhanek, Tomas"]
[Result "1-0"]
[ECO "A10"]
[WhiteElo "2458"]
[BlackElo "2316"]
[Annotator "RC"]
[PlyCount "87"]
[EventDate "2019.04.27"]
[EventType "swiss"]
[EventCountry "CZE"]
[SourceTitle "playchess.com"]
[Source "ChessBase"]
[SourceQuality "1"]
[TimeControl "40/5400+30:1800+30"]

1. c4 {[%emt 0:00:00]} g6 {[%emt 0:00:00]} 2. g3 {[%emt 0:00:00]} Bg7 {[%emt 0:00:00]} 3. Bg2 {[%emt 0:00:00]} e5 {[%emt 0:00:43]} 4. Nc3 {[%emt 0:00:00]} d6 {[%emt 0:00:11]} 5. e3 {[%emt 0:02:59]} Nc6 {[%emt 0:00:24]} 6. Rb1 {[%emt 0:00:17]} Be6 {[%emt 0:01:08]} 7. b4 {[%emt 0:02:30]} Qd7 {[%emt 0:00:56]} 8. d3 {[%emt 0:03:32]} Nf6 {[%emt 0:00:40]} 9. b5 {[%emt 0:00:26]} Nd8 {[%emt 0:00:05]} 10. Qa4 {[%emt 0:01:35]} O-O {[%emt 0:03:08]} 11. Nd5 {[%emt 0:03:36]} Ne8 {[%emt 0:05:54]} 12. h4 {[%emt 0:02:46]} h6 {[%emt 0:00:30]} 13. Ne2 {[%emt 0:00:09]} Kh7 {[%emt 0:00:46]} 14. Bb2 {[%emt 0:00:53]} f5 {[%emt 0:00:48]} 15. Qa5 {[%emt 0:04:21]} c6 {[%emt 0:16:20]} 16. Nb4 {[%emt 0:02:59]} e4 {[%emt 0:05:36]} 17. Bxg7 {[%emt 0:10:00]} Nxg7 {[%emt 0:03:18]} 18. Nd4 {[%emt 0:01:00]} Bxc4 {[%emt 0:14:09]} 19. bxc6 {[%emt 0:04:47]} bxc6 {[%emt 0:00:50]} 20. dxc4 {[%emt 0:01:55]} c5 {[%emt 0:01:20]} 21. Nb5 {[%emt 0:02:06]} cxb4 {[%emt 0:00:43]} 22. Qxb4 {[%emt 0:01:25]} Nf7 {[%emt 0:07:14]} 23. O-O {[%emt 0:01:59]} a6 {[%emt 0:02:11]} 24. Nd4 {[%emt 0:00:08]} Ne5 {[%emt 0:00:41]} 25. Rfd1 {[%emt 0:02:08]} Qc7 {[%emt 0:02:50]} 26. Bf1 {[%emt 0:02:05]} Rfb8 {[%emt 0:07:11]} 27. Qa4 {[%emt 0:01:42]} g5 {[%emt 0:01:18]} 28. hxg5 {[%emt 0:00:50]} hxg5 {[%emt 0:00:05]} 29. Be2 {[%emt 0:04:26]} Rb6 {[%emt 0:08:14]} 30. Qa5 {[%emt 0:05:21]} Rab8 {[%emt 0:00:28]} 31. Rb3 {[%emt 0:00:25]} Qc5 {[%emt 0:01:28]} 32. Qxc5 {[%emt 0:02:22]} dxc5 {[%emt 0:00:02]} 33. Rxb6 {[%emt 0:00:07]} Rxb6 {[%emt 0:00:12]} 34. Nb3 {[%emt 0:00:04]} f4 {[%emt 0:09:16]} 35. Rd5 {[%emt 0:02:44]} f3 {[%emt 0:00:41]} 36. Bf1 {[%emt 0:00:15]} Nf7 {[%emt 0:01:34]} 37. Nxc5 {[%emt 0:01:01]} Rb2 {[%emt 0:02:18]} 38. Nxe4 {[%emt 0:02:18]} Rxa2 {[%emt 0:01:44]} 39. c5 {[%emt 0:01:51]} Kg6 {[%emt 0:01:12]} 40. Bd3 {[%emt 0:00:17]} Kh6 {[%emt 0:02:44]} 41. Rd7 {[%emt 0:33:18]} Ne5 {[%emt 0:03:32]} 42. Rd6+ {[%emt 0:00:00]} Kh5 {[%emt 0:00:08]} 43. Nf6+ {[%emt 0:00:00]} Kh6 {[%emt 0:00:13]} 44. Ng4+ {[%emt 0:00:00]} 1-0

[Event "CZE-ch Open 2019"]
[Site "Ostrava"]
[Date "2019.05.05"]
[Round "9.13"]
[White "Rubes, Jan"]
[Black "Liska, Jiri"]
[Result "0-1"]
[ECO "A22"]
[WhiteElo "2345"]
[BlackElo "2236"]
[Annotator "RC"]
[PlyCount "92"]
[EventDate "2019.04.27"]
[EventType "swiss"]
[EventCountry "CZE"]
[SourceTitle "playchess.com"]
[Source "ChessBase"]
[SourceQuality "1"]
[TimeControl "40/5400+30:1800+30"]

1. c4 {[%emt 0:00:00]} Nf6 {[%emt 0:00:00]} 2. Nc3 {[%emt 0:00:00]} e5 {[%emt 0:00:36]} 3. g3 {[%emt 0:00:01]} Nc6 {[%emt 0:01:24]} 4. Bg2 {[%emt 0:00:12]} Bc5 {[%emt 0:01:12]} 5. a3 {[%emt 0:02:22]} a6 {[%emt 0:03:29]} 6. e3 {[%emt 0:00:51]} O-O {[%emt 0:03:38]} 7. Nge2 {[%emt 0:00:06]} Re8 {[%emt 0:01:47]} 8. O-O {[%emt 0:02:05]} Rb8 {[%emt 0:06:10]} 9. d4 {[%emt 0:00:33]} exd4 {[%emt 0:00:51]} 10. exd4 {[%emt 0:00:06]} Bf8 {[%emt 0:02:25]} 11. d5 {[%emt 0:06:49]} Ne5 {[%emt 0:03:23]} 12. Qd4 {[%emt 0:03:58]} c5 {[%emt 0:12:48]} 13. dxc6 {[%emt 0:06:48]} dxc6 {[%emt 0:00:22]} 14. Qxd8 {[%emt 0:02:15]} Rxd8 {[%emt 0:00:02]} 15. Bf4 {[%emt 0:00:09]} Re8 {[%emt 0:02:40]} 16. Nd4 {[%emt 0:03:02]} Bd7 {[%emt 0:07:02]} 17. Nf3 {[%emt 0:06:09]} Nxf3+ {[%emt 0:08:03]} 18. Bxf3 {[%emt 0:00:04]} Rbd8 {[%emt 0:00:12]} 19. Bc7 {[%emt 0:00:46]} Rc8 {[%emt 0:00:13]} 20. Bb6 {[%emt 0:00:15]} Be6 {[%emt 0:01:05]} 21. b3 {[%emt 0:04:19]} Nd7 {[%emt 0:02:52]} 22. Be3 {[%emt 0:01:09]} Ne5 {[%emt 0:03:38]} 23. Bg2 {[%emt 0:00:19]} Rcd8 {[%emt 0:05:39]} 24. h3 {[%emt 0:01:21]} f5 {[%emt 0:05:32]} 25. Ne2 {[%emt 0:05:37]} Rd3 {[%emt 0:02:42]} 26. Rfb1 {[%emt 0:00:18]} Bf7 {[%emt 0:02:26]} 27. Nd4 {[%emt 0:03:00]} g6 {[%emt 0:00:39]} 28. Kh1 {[%emt 0:04:23]} Rd8 {[%emt 0:01:51]} 29. Ne2 {[%emt 0:02:35]} Bg7 {[%emt 0:02:33]} 30. Kh2 {[%emt 0:02:42]} h6 {[%emt 0:03:10]} 31. a4 {[%emt 0:01:10]} g5 {[%emt 0:01:21]} 32. a5 {[%emt 0:00:28]} Bh5 {[%emt 0:01:33]} 33. Ng1 {[%emt 0:01:17]} f4 {[%emt 0:06:11]} 34. Bb6 {[%emt 0:00:26]} R8d7 {[%emt 0:01:08]} 35. Ra2 {[%emt 0:00:18]} f3 {[%emt 0:01:52]} 36. Bh1 {[%emt 0:00:05]} g4 {[%emt 0:00:30]} 37. Ba7 {[%emt 0:04:25]} Rd8 {[%emt 0:02:48]} 38. Bb6 {[%emt 0:00:11]} R8d7 {[%emt 0:00:02]} 39. Ba7 {[%emt 0:00:07]} Bg6 {[%emt 0:03:46]} 40. hxg4 {[%emt 0:04:22]} Nxg4+ {[%emt 0:00:02]} 41. Kh3 {[%emt 0:30:08]} Ne5 {[%emt 0:02:58]} 42. g4 {[%emt 0:00:00]} h5 {[%emt 0:03:05]} 43. gxh5 {[%emt 0:00:00]} Bf5+ {[%emt 0:03:08]} 44. Kg3 {[%emt 0:00:00]} Bh6 {[%emt 0:03:47]} 45. Bb8 {[%emt 0:00:00]} Rg7+ {[%emt 0:00:07]} 46. Kh4 {[%emt 0:00:00]} Bg5+ 0-1

[Event "CZE-ch Open 2019"]
[Site "Ostrava"]
[Date "2019.05.05"]
[Round "9.16"]
[White "Jasny, Stanislav"]
[Black "Ludvik, Tomas"]
[Result "1/2-1/2"]
[ECO "B92"]
[WhiteElo "2347"]
[BlackElo "2222"]
[Annotator "NA"]
[PlyCount "104"]
[EventDate "2019.04.27"]
[EventType "swiss"]
[EventCountry "CZE"]
[SourceTitle "playchess.com"]
[Source "ChessBase"]
[SourceQuality "1"]
[TimeControl "40/5400+30:1800+30"]

1. e4 {[%emt 0:00:00]} c5 {[%emt 0:00:00]} 2. Nf3 {[%emt 0:00:00]} d6 {[%emt 0:00:00]} 3. d4 {[%emt 0:00:00]} cxd4 {[%emt 0:00:00]} 4. Nxd4 {[%emt 0:00:06]} Nf6 {[%emt 0:00:00]} 5. Nc3 {[%emt 0:00:07]} a6 {[%emt 0:00:00]} 6. Be2 {[%emt 0:00:48]} e5 {[%emt 0:00:09]} 7. Nb3 {[%emt 0:00:09]} Be7 {[%emt 0:00:08]} 8. O-O {[%emt 0:00:11]} O-O {[%emt 0:00:07]} 9. Re1 {[%emt 0:00:19]} Be6 {[%emt 0:04:25] B92: Sicilian Najdorf: 6 Be2} 10. Bf3 {[%emt 0:00:23]} Nbd7 {[%emt 0:01:35]} 11. a4 {[%emt 0:03:53]} Qc7 {[%emt 0:04:10]} (11... Qb8 12. a5 Rc8 13. h3 h6 14. Nd5 Nxd5 15. exd5 Bf5 16. c3 Nf6 17. Ra4 {0-1 (96) Vovk,Y (2579)-Wojtaszek,R (2724) Katowice 2019}) 12. a5 {[%emt 0:00:08]} Rfd8 {[%emt 0:06:10]} 13. Be3 {[%emt 0:05:26]} Nc5 {[%emt 0:02:31]} 14. Nxc5 $146 {[%emt 0:05:58]} ({Predecessor:} 14. Re2 h6 15. Rd2 Nfd7 16. Nc1 b6 {1-0 (42) Sawadkuhi,M (2164)-Keresztes,R (2271) Kecskemet 2011}) 14... dxc5 {[%emt 0:00:06]} 15. Qe2 {[%emt 0:01:12]} h6 {[%emt 0:03:46]} 16. Na4 {[%emt 0:05:11]} Nd7 {[%emt 0:10:12]} 17. Bg4 {[%emt 0:03:58]} Bxg4 {[%emt 0:13:37]} 18. Qxg4 {[%emt 0:00:37]} Bg5 {[%emt 0:00:41]} 19. Bxg5 {[%emt 0:00:52]} hxg5 {[%emt 0:00:03]} 20. Nc3 {[%emt 0:20:13]} Nf6 {[%emt 0:05:51]} 21. Qxg5 {[%emt 0:05:13]} Rd4 {[%emt 0:01:30]} 22. Re3 {[%emt 0:00:46]} Qd6 {[%emt 0:08:10]} (22... Rad8 $16 {was worth a try.} 23. Rg3 Ne8) 23. Rg3 {[%emt 0:09:01]} g6 {[%emt 0:00:32]} 24. Rh3 {[%emt 0:00:21]} Rd8 {[%emt 0:02:24]} 25. Nd5 {[%emt 0:06:08]} Nxd5 {[%emt 0:04:26]} 26. Qh6 {[%emt 0:06:09]} Qf6 {[%emt 0:00:33]} 27. exd5 {[%emt 0:00:15]} R8xd5 {[%emt 0:03:58]} 28. Rf1 {[%emt 0:05:32]} Rd2 {[%emt 0:04:55]} 29. Rf3 {[%emt 0:02:35]} Qg7 {[%emt 0:00:55]} 30. Qxg7+ {[%emt 0:00:21]} (30. Qh4 $11) 30... Kxg7 {[%emt 0:00:02]} 31. Rc3 {[%emt 0:00:35]} Re2 {[%emt 0:02:00]} 32. g3 {[%emt 0:02:49]} e4 {[%emt 0:02:00]} 33. Kg2 {[%emt 0:03:23]} Rdd2 {[%emt 0:13:13]} 34. Rxc5 {[%emt 0:00:35]} Rxc2 {[%emt 0:03:28]} 35. Rxc2 {[%emt 0:00:16]} Rxc2 {[%emt 0:00:03]} 36. b4 {[%emt 0:02:12]} Rb2 {[%emt 0:00:21]} 37. g4 {[%emt 0:00:14]} e3 {[%emt 0:03:37]} 38. Kf3 {[%emt 0:00:47]} (38. h3 $142) 38... exf2 {[%emt 0:00:26]} 39. Rxf2 {[%emt 0:00:07]} Rb3+ {[%emt 0:00:25]} ({Don't take} 39... Rxb4 40. Re2 $17) 40. Kf4 {[%emt 0:01:22]} Rxb4+ {[%emt 0:00:21]} 41. Kg3 {[%emt 0:31:02]} Rb5 {[%emt 0:03:42]} 42. Ra2 {[%emt 0:00:00]} g5 {[%emt 0:02:31]} 43. Ra3 {[%emt 0:00:00]} Kg6 {[%emt 0:00:45]} 44. h3 {[%emt 0:00:00]} f6 {[%emt 0:03:04]} 45. Kf3 {[%emt 0:00:00]} f5 {[%emt 0:01:50]} 46. gxf5+ {[%emt 0:00:00]} Kxf5 {[%emt 0:00:04]} 47. Kg3 {[%emt 0:00:00]} Ke4 {[%emt 0:01:48]} 48. Kg4 {[%emt 0:00:00] [#]} Kd4 $1 {[%emt 0:01:03]} 49. Ra1 {[%emt 0:00:00]} Kc3 {[%emt 0:00:51]} 50. Kh5 {[%emt 0:00:00]} Kb4 $19 {[%emt 0:01:28]} 51. Kg4 {[%emt 0:00:00]} Kc4 {[%emt 0:06:15]} 52. Ra4+ {[%emt 0:00:00]} Kb3 {[%emt 0:03:12]} 1/2-1/2